bitfinex-derivatives/quotes_SOLF0:USTF0_20250529
["timestamp","ask_amount","ask_price","bid_price","bid_amount"]
[1748527290186,0.04377999,170.8,170.78,5.8532]
[1748527290580,0.04377999,170.8,170.77,0.0390797]
[1748527291683,5.853,170.79,170.77,0.0390797]
[1748527291885,0.04377999,170.8,170.77,0.0390797]
[1748527293388,0.04377999,170.8,170.77,5.8925797]
[1748527293691,0.04377999,170.8,170.77,0.0390797]
[1748527293893,0.04377999,170.8,170.79,5.853]
[1748527294089,0.04377999,170.8,170.77,0.0390797]
[1748527294485,0.04377999,170.8,170.79,5.853]
[1748527294993,36.72,170.87,170.83,5.8515]
[1748527295589,42.5705,170.87,170.83,5.8516]
[1748527295791,36.76101641,170.87,170.83,0.04432969]
[1748527296194,5.8508,170.86,170.83,0.04432969]
[1748527296392,36.76101641,170.87,170.83,0.04432969]
[1748527296786,42.61141641,170.87,170.83,5.89592969]
[1748527297400,42.61141641,170.87,170.84,5.8511]
[1748527297601,42.61141641,170.87,170.83,0.04432969]
[1748527297988,5.8506,170.86,170.83,5.89582969]
[1748527298193,36.76101641,170.87,170.83,0.04432969]
[1748527298505,42.61141641,170.87,170.83,0.04432969]
[1748527299003,42.61141641,170.87,170.83,5.89572969]
[1748527301197,42.61141641,170.87,170.83,0.04432969]
[1748527301198,0.04101641,170.87,170.83,0.04432969]
[1748527301794,0.04101641,170.87,170.86,5.8506]
[1748527301996,0.04101641,170.87,170.83,0.04432969]
[1748527302401,0.04101641,170.87,170.85,5.8507]
[1748527303997,0.04101641,170.87,170.84,5.8512]
[1748527304195,0.04101641,170.87,170.83,0.04432969]
[1748527304803,0.04101641,170.87,170.84,5.8513]
[1748527305005,0.04101641,170.87,170.83,0.04432969]
[1748527305804,5.8511,170.85,170.83,0.04432969]
[1748527306608,5.8507,170.86,170.83,0.04432969]
[1748527306906,5.8509,170.86,170.83,0.04432969]
[1748527307098,0.04101641,170.87,170.83,0.04432969]
[1748527308008,5.89151641,170.87,170.83,0.04432969]
[1748527308310,0.04101641,170.87,170.83,0.04432969]
[1748527308706,0.04101641,170.87,170.74,36.7]
[1748527308905,4.58840776,170.88,170.74,36.7]
[1748527309199,2.49740776,170.87,170.74,36.7]
[1748527309406,2.49740776,170.86,170.74,36.7]
[1748527309605,5.89380715,170.82,170.78,5.89395859]
[1748527310008,0.04160715,170.82,170.78,5.89395859]
[1748527310210,5.8523,170.81,170.78,5.89395859]
[1748527310511,0.04160715,170.82,170.78,0.04085859]
[1748527310807,5.8524,170.81,170.78,0.04085859]
[1748527311010,0.04160715,170.82,170.78,0.04085859]
[1748527311511,5.8525,170.81,170.78,5.89415859]
[1748527311711,5.8525,170.81,170.78,0.04085859]
[1748527312115,5.89370715,170.82,170.78,5.89395859]
[1748527312311,0.04160715,170.82,170.78,5.89395859]
[1748527312714,0.04160715,170.82,170.78,0.04085859]
[1748527312903,6.55289434,170.82,170.7,542.5]
[1748527313110,6.51128719,170.82,170.73,5.8548]
[1748527313312,6.51128719,170.82,170.7,36.72]
[1748527313313,1.9229,170.81,170.7,36.72]
[1748527313616,1.9229,170.81,170.66,36.72]
[1748527313617,2.50247882,170.8,170.66,36.72]
[1748527313819,0.0394488,170.75,170.71,0.03990473]
[1748527314014,36.7594488,170.75,170.71,0.03990473]
[1748527314215,36.7594488,170.75,170.71,5.89560473]
[1748527314517,36.7594488,170.75,170.71,0.03990473]
[1748527314917,36.7594488,170.75,170.72,5.8551]
[1748527315513,36.7594488,170.75,170.71,0.03990473]
[1748527316116,36.7594488,170.75,170.74,5.8547]
[1748527318319,0.0394488,170.75,170.71,0.03990473]
[1748527319714,0.0394488,170.75,170.74,5.8547]
[1748527320820,0.0394488,170.75,170.71,36.75990473]
[1748527321213,0.0394488,170.75,170.72,5.8552]
[1748527321413,0.0394488,170.75,170.71,36.75990473]
[1748527321618,0.0394488,170.75,170.71,0.03990473]
[1748527322814,5.8941488,170.75,170.71,0.03990473]
[1748527323011,0.0394488,170.75,170.71,0.03990473]
[1748527323418,0.0394488,170.75,170.71,5.89550473]
[1748527324225,5.8939488,170.75,170.71,5.89550473]
[1748527324522,0.0394488,170.75,170.71,5.89550473]
[1748527324717,5.8939488,170.75,170.71,5.89550473]
[1748527324916,0.0394488,170.75,170.72,5.8552]
[1748527325119,0.0394488,170.75,170.71,0.03990473]
[1748527325511,0.0394488,170.75,170.74,5.8547]
[1748527325715,4.88e-05,170.75,170.74,5.8547]
[1748527326023,36.54,170.84,170.78,5.8531]
[1748527326217,36.54,170.84,170.74,1.9441]
[1748527326415,5.8519,170.83,170.74,1.9441]
[1748527326623,36.54,170.84,170.74,1.9441]
[1748527326923,0.03701026,170.81,170.77,0.03754027]
[1748527327423,5.8528,170.8,170.77,0.03754027]
[1748527328322,0.03701026,170.81,170.77,0.03754027]
[1748527328927,0.03701026,170.81,170.69,36.54]
[1748527329124,36.54,170.84,170.74,5.8546]
[1748527329422,2.50127243,170.83,170.69,36.54]
[1748527329623,36.54,170.83,170.77,5.8536]
[1748527329823,5.8525,170.81,170.78,0.04499961]
[1748527330025,0.04224515,170.81,170.78,0.03701762]
[1748527330225,0.04224515,170.81,170.78,5.89011762]
[1748527330421,5.89484515,170.81,170.78,5.89011762]
[1748527330621,0.04224515,170.81,170.78,0.03701762]
[1748527331028,5.853,170.79,170.78,0.03701762]
[1748527332529,5.8528,170.8,170.78,0.03701762]
[1748527333126,5.89464515,170.81,170.78,0.03701762]
[1748527333624,5.8528,170.8,170.78,0.03701762]
[1748527334526,0.04224515,170.81,170.78,0.03701762]
[1748527334527,5.89474515,170.81,170.78,0.03701762]
[1748527334728,0.04224515,170.81,170.78,0.03701762]
[1748527335226,0.04224515,170.81,170.8,5.8526]
[1748527335631,0.04224515,170.81,170.78,0.03701762]
[1748527336136,5.853,170.79,170.78,0.03701762]
[1748527337436,5.8528,170.8,170.78,0.03701762]
[1748527337929,5.8526,170.8,170.78,0.03701762]
[1748527338329,0.04224515,170.81,170.78,0.03701762]
[1748527338526,5.853,170.79,170.78,0.03701762]
[1748527339132,0.04224515,170.81,170.78,0.03701762]
[1748527339635,5.853,170.79,170.78,0.03701762]
[1748527341034,0.04224515,170.81,170.78,0.03701762]
[1748527341436,0.04224515,170.81,170.78,5.89031762]
[1748527341641,0.04224515,170.81,170.78,0.03701762]
[1748527342136,5.8529,170.8,170.78,0.03701762]
[1748527342436,0.04224515,170.81,170.78,0.03701762]
[1748527342638,5.89474515,170.81,170.78,5.89011762]
[1748527343037,0.04224515,170.81,170.78,0.03701762]
[1748527343240,5.8527,170.8,170.78,0.03701762]
[1748527343631,0.04224515,170.81,170.78,0.03701762]
[1748527344028,5.89464515,170.81,170.78,5.89011762]
[1748527344743,0.04224515,170.81,170.79,5.8529]
[1748527344932,0.04224515,170.81,170.78,0.03701762]
[1748527345332,0.04224515,170.81,170.8,5.8526]
[1748527345533,0.04224515,170.81,170.78,0.03701762]
[1748527345838,0.04224515,170.81,170.8,5.8526]
[1748527346235,0.04224515,170.81,170.78,0.03701762]
[1748527346537,0.04224515,170.81,170.78,5.89021762]
[1748527346933,0.04224515,170.81,170.78,0.03701762]
[1748527347134,0.04224515,170.81,170.79,5.8528]
[1748527347737,0.04224515,170.81,170.78,0.03701762]
[1748527348340,0.04224515,170.81,170.79,5.8528]
[1748527349941,0.04224515,170.81,170.8,5.8526]
[1748527351140,0.04224515,170.81,170.78,0.03701762]
[1748527351141,36.54,170.88,170.82,5.8517]
[1748527351642,5.8505,170.87,170.82,5.8517]
[1748527351842,5.8505,170.87,170.77,5.7831]
[1748527352034,0.04388708,170.84,170.8,0.04512198]
[1748527352235,0.04388708,170.84,170.83,5.8516]
[1748527354249,0.04388708,170.84,170.8,0.04512198]
[1748527354250,36.34,170.92,170.81,36.34]
[1748527354640,5.8498,170.89,170.84,5.851]
[1748527354840,5.8498,170.89,170.81,36.34]
[1748527355040,36.34,170.92,170.81,36.34]
[1748527355245,0.04460347,170.88,170.85,5.89035515]
[1748527355440,0.04460347,170.88,170.85,0.03975515]
[1748527356238,0.04460347,170.88,170.87,5.8502]
[1748527356450,0.04460347,170.88,170.85,0.03975515]
[1748527356949,0.04460347,170.88,170.86,5.8506]
[1748527357149,0.04460347,170.88,170.85,0.03975515]
[1748527357355,5.89470347,170.88,170.85,0.03975515]
[1748527357543,0.04460347,170.88,170.85,0.03975515]
[1748527358546,2.51837655,170.87,170.85,0.03975515]
[1748527358745,0.04460347,170.88,170.85,0.03975515]
[1748527358949,5.8506,170.86,170.85,0.03975515]
[1748527360548,0.04460347,170.88,170.85,0.03975515]
[1748527360853,5.8504,170.87,170.85,0.03975515]
[1748527361446,5.8506,170.86,170.85,0.03975515]
[1748527361945,8.37249486,170.86,170.85,0.03975515]
[1748527362152,5.8504,170.87,170.85,0.03975515]
[1748527362649,5.8506,170.86,170.85,0.03975515]
[1748527362853,8.37941973,170.86,170.85,0.03975515]
[1748527363052,5.8506,170.86,170.85,0.03975515]
[1748527363254,8.37956256,170.86,170.85,0.03975515]
[1748527363453,8.37972342,170.86,170.85,0.03975515]
[1748527363651,0.04460347,170.88,170.77,5.7831]
[1748527363652,36.32,170.87,170.77,42.1031]
[1748527363856,36.32,170.87,170.79,5.8529]
[1748527364149,5.8518,170.83,170.79,5.8529]
[1748527364352,5.8518,170.83,170.8,5.8526]
[1748527364541,5.88996926,170.83,170.8,5.89607516]
[1748527365147,0.03816926,170.83,170.81,5.8523]
[1748527367255,0.03816926,170.83,170.8,0.04347516]
[1748527367256,5.88976926,170.83,170.8,5.89597516]
[1748527367454,5.88976926,170.83,170.8,0.04347516]
[1748527367654,0.03816926,170.83,170.8,0.04347516]
[1748527368459,0.03816926,170.83,170.82,5.852]
[1748527369161,0.03816926,170.83,170.81,5.8522]
[1748527370649,0.03816926,170.83,170.82,5.852]
[1748527371047,0.03816926,170.83,170.8,0.04347516]
[1748527371357,0.03816926,170.83,170.81,5.8521]
[1748527371755,5.89006926,170.83,170.8,5.89607516]
[1748527372357,0.03816926,170.83,170.8,0.04347516]
[1748527372964,36.32,170.82,170.73,36.32]
[1748527373258,2.52045943,170.81,170.73,36.32]
[1748527373459,40.3646,170.82,170.73,36.32]
[1748527373849,0.03796051,170.79,170.76,0.04198009]
[1748527375364,0.03796051,170.79,170.78,5.8533]
[1748527375759,0.03796051,170.79,170.76,0.04198009]
[1748527375955,0.03796051,170.79,170.77,5.8534]
[1748527376360,5.89116051,170.79,170.76,5.89578009]
[1748527376964,5.8534,170.78,170.76,5.89578009]
[1748527377160,0.03796051,170.79,170.76,5.89578009]
[1748527377765,5.89106051,170.79,170.76,5.89578009]
[1748527377962,0.03796051,170.79,170.77,5.8536]
[1748527378761,5.89096051,170.79,170.77,5.8536]
[1748527379065,5.89096051,170.79,170.76,5.89588009]
[1748527379265,5.89096051,170.79,170.76,0.04198009]
[1748527379564,0.03796051,170.79,170.76,0.04198009]
[1748527380166,0.03796051,170.79,170.78,5.8533]
[1748527380577,0.03796051,170.79,170.76,0.04198009]
[1748527382166,0.03796051,170.79,170.73,36.32]
[1748527382167,2.55851365,170.79,170.72,5.8553]
[1748527382366,2.55851365,170.79,170.69,36.34]
[1748527382367,2.52055314,170.78,170.69,36.34]
[1748527382559,2.52055314,170.78,170.68,1.9344]
[1748527382560,2.52055314,170.77,170.68,1.9344]
[1748527382765,2.51990812,170.76,170.68,1.9344]
[1748527383069,7.96601279,170.78,170.68,1.9344]
[1748527383070,38.85978424,170.75,170.68,1.9344]
[1748527383274,0.04280877,170.73,170.7,0.04092889]
[1748527383468,0.0389364,170.73,170.7,0.04092889]
[1748527383861,0.0389364,170.73,170.72,5.8554]
[1748527384662,36.34,170.79,170.76,5.8538]
[1748527384862,2.52077245,170.8,170.71,1.9845]
[1748527385571,0.04282376,170.77,170.74,0.03849621]
[1748527385966,0.04282376,170.77,170.76,5.8538]
[1748527387667,2.52077245,170.8,170.79,5.853]
[1748527392679,2.52077245,170.8,170.78,5.89646624]
[1748527393380,2.52077245,170.8,170.79,5.853]
[1748527397382,8.37347245,170.8,170.78,0.04336624]
[1748527397582,2.52077245,170.8,170.78,0.04336624]
[1748527398082,5.853,170.79,170.78,0.04336624]
[1748527398479,5.8535,170.78,170.74,5.8545]
[1748527398692,2.52077245,170.8,170.71,36.14]
[1748527399186,2.52077245,170.8,170.71,44.10601279]
[1748527399578,0.03877084,170.77,170.74,0.03992483]
[1748527400383,0.03877084,170.77,170.76,5.854]
[1748527402583,0.03877084,170.77,170.75,5.8542]
[1748527402783,0.03877084,170.77,170.74,0.03992483]
[1748527403685,0.03877084,170.77,170.76,5.854]
[1748527405786,2.52077245,170.8,170.79,5.853]
[1748527411985,36.14,170.88,170.85,5.8507]
[1748527412182,36.14,170.88,170.76,36.14]
[1748527412684,41.99,170.88,170.83,5.8514]
[1748527412883,36.14,170.88,170.83,5.8514]
[1748527413186,5.89522283,170.87,170.84,0.04150125]
[1748527414189,0.04492283,170.87,170.84,0.04150125]
[1748527415382,0.04492283,170.87,170.86,5.8506]
[1748527421295,39.7793,170.95,170.84,0.04150125]
[1748527421490,39.7793,170.95,170.82,6.0582]
[1748527421682,39.7793,170.95,170.88,5.8496]
[1748527422081,39.7793,170.95,170.82,6.0582]
[1748527422082,5.88861388,170.93,170.9,0.04247472]
[1748527424291,0.04041388,170.93,170.9,0.04247472]
[1748527424495,0.04041388,170.93,170.91,5.8485]
[1748527424692,0.04041388,170.93,170.9,0.04247472]
[1748527425690,0.04041388,170.93,170.92,5.8485]
[1748527429204,1.388e-05,170.93,170.92,5.8485]
[1748527429799,2.006,171.01,170.92,5.8485]
[1748527429992,2.006,171.01,170.91,35.92]
[1748527430796,2.006,171.01,170.94,0.03806878]
[1748527431296,5.8462,170.99,170.94,5.88566878]
[1748527431495,5.8462,170.99,170.94,0.03806878]
[1748527432301,5.8466,170.98,170.94,0.03806878]
[1748527432901,5.8463,170.99,170.94,0.03806878]
[1748527433902,2.006,171.01,170.94,0.03806878]
[1748527434597,2.006,171.01,170.96,5.8471]
[1748527434995,5.846,171.0,170.96,5.8471]
[1748527435396,5.846,171.0,170.97,5.8467]
[1748527435596,5.8462,170.99,170.94,0.03806878]
[1748527435997,2.006,171.01,170.96,5.8468]
[1748527436295,5.846,171.0,170.94,0.03806878]
[1748527437101,5.8461,170.99,170.96,5.8469]
[1748527437496,2.006,171.01,170.96,5.8469]
[1748527437702,5.8468,170.97,170.94,0.03806878]
[1748527437999,4.54809162,171.0,170.94,0.03806878]
[1748527438301,5.8465,170.98,170.94,5.88566878]
[1748527438701,5.8468,170.97,170.94,5.88566878]
[1748527440203,5.8466,170.98,170.95,5.8475]
[1748527440802,5.8469,170.97,170.94,5.88576878]
[1748527440999,2.0513,170.99,170.94,0.03806878]
[1748527441397,5.8475,170.95,170.94,0.03806878]
[1748527441699,2.0513,170.99,170.94,0.03806878]
[1748527441905,5.8475,170.95,170.94,0.03806878]
[1748527443804,35.9,170.97,170.87,35.9]
[1748527444004,35.9,170.97,170.89,5.8493]
[1748527444401,5.8488,170.92,170.89,5.8493]
[1748527444907,5.89009882,170.92,170.89,5.8913096]
[1748527445997,0.04129882,170.92,170.9,5.8492]
[1748527446198,0.04129882,170.92,170.89,0.0420096]
[1748527446603,5.88989882,170.92,170.89,5.8914096]
[1748527448017,0.04129882,170.92,170.9,5.8492]
[1748527448206,0.04129882,170.92,170.89,0.0420096]
[1748527448514,0.04129882,170.92,170.9,5.8492]
[1748527449217,0.04129882,170.92,170.91,5.8489]
[1748527451614,0.04129882,170.92,170.89,5.8912096]
[1748527452109,0.04129882,170.92,170.89,0.0420096]
[1748527452614,0.04129882,170.92,170.89,5.8915096]
[1748527453218,5.88999882,170.92,170.89,5.8915096]
[1748527453508,0.04129882,170.92,170.89,0.0420096]
[1748527454016,0.04129882,170.92,170.91,5.8489]
[1748527459613,5.8467,170.98,170.94,5.8476]
[1748527459815,37.706,171.01,170.9,1.9636]
[1748527460010,2.006,171.01,170.9,3.8656]
[1748527460316,2.006,171.01,170.97,5.8466]
[1748527460711,2.006,171.01,170.97,5.88745885]
[1748527461215,2.46782022,171.0,170.98,5.8464]
[1748527461415,2.006,171.01,170.98,5.8464]
[1748527461614,10.31942738,171.01,170.97,0.04085885]
[1748527461919,2.006,171.01,170.97,5.88745885]
[1748527462308,4.47403318,171.01,170.97,5.88745885]
[1748527462524,2.006,171.01,170.97,0.04085885]
[1748527462916,7.8517,171.01,170.97,0.04085885]
[1748527463119,7.8517,171.01,170.97,5.88765885]
[1748527463713,2.46932012,171.0,170.97,0.04085885]
[1748527463919,2.006,171.01,170.98,5.8464]
[1748527464317,2.46915791,171.0,170.97,0.04085885]
[1748527464520,2.006,171.01,170.98,5.8464]
[1748527464716,2.006,171.01,170.97,0.04085885]
[1748527465120,7.8516,171.01,170.97,5.88745885]
[1748527465523,7.8516,171.01,170.97,0.04085885]
[1748527466131,7.8516,171.01,170.97,5.88755885]
[1748527466427,2.006,171.01,170.97,0.04085885]
[1748527466729,2.4686616,171.0,170.97,0.04085885]
[1748527466926,7.8516,171.01,170.97,5.88745885]
[1748527467125,2.46852518,171.0,170.97,5.88745885]
[1748527467322,7.8516,171.01,170.97,0.04085885]
[1748527467923,2.006,171.01,170.99,5.8461]
[1748527468124,2.006,171.01,170.97,0.04085885]
[1748527468515,5.846,171.0,170.97,5.88745885]
[1748527469122,5.8462,170.99,170.97,0.04085885]
[1748527469526,2.006,171.01,170.97,0.04085885]
[1748527469731,5.8459,171.0,170.97,5.88735885]
[1748527470122,2.006,171.01,170.97,0.04085885]
[1748527470326,5.8464,170.99,170.97,0.04085885]
[1748527471234,5.8465,170.98,170.97,0.04085885]
[1748527471430,2.006,171.01,170.97,0.04085885]
[1748527471731,5.846,171.0,170.97,0.04085885]
[1748527471927,2.006,171.01,170.97,0.04085885]
[1748527472232,2.46605314,171.01,170.97,0.04085885]
[1748527472433,2.4669332,171.01,170.97,0.04085885]
[1748527472826,35.7,171.02,170.97,0.04085885]
[1748527473027,5.8456,171.01,170.97,0.04085885]
[1748527473228,35.7,171.02,170.97,0.04085885]
[1748527474330,5.8471,170.97,170.93,5.8481]
[1748527474636,2.46507196,171.0,170.9,1.9636]
[1748527474827,5.8477,170.95,170.91,5.8485]
[1748527475028,2.46486709,170.98,170.88,1.94]
[1748527475229,6.39744476,171.01,170.85,37.4718]
[1748527475230,35.5,170.97,170.85,37.4718]
[1748527475435,0.03892685,170.95,170.91,0.04489395]
[1748527475635,2.50338343,170.95,170.91,0.04489395]
[1748527475938,5.8485,170.92,170.91,0.04489395]
[1748527476433,5.848,170.94,170.91,0.04489395]
[1748527476735,1.98472685,170.95,170.91,0.04489395]
[1748527477033,5.8485,170.92,170.91,0.04489395]
[1748527478532,5.8494,170.9,170.85,35.5]
[1748527479038,5.8494,170.9,170.86,5.8505]
[1748527479230,5.8496,170.89,170.86,5.8505]
[1748527479535,5.89274727,170.89,170.86,5.89359462]
[1748527479735,5.89274727,170.89,170.86,0.04309462]
[1748527479934,0.04314727,170.89,170.86,0.04309462]
[1748527480535,0.04314727,170.89,170.86,5.89339462]
[1748527481230,5.89284727,170.89,170.86,5.89339462]
[1748527481434,0.04314727,170.89,170.86,0.04309462]
[1748527482135,5.8502,170.87,170.86,0.04309462]
[1748527483531,5.85,170.88,170.86,0.04309462]
[1748527484328,5.8502,170.87,170.86,0.04309462]
[1748527488641,5.8502,170.87,170.76,1.968]
[1748527488642,35.52,170.87,170.76,1.968]
[1748527488838,35.52,170.87,170.72,1.9336]
[1748527488839,7.96601279,170.84,170.72,1.9336]
[1748527489141,5.8534,170.78,170.72,1.9336]
[1748527489642,0.04312119,170.77,170.73,0.04203215]
[1748527489943,0.04312119,170.77,170.74,5.8545]
[1748527490934,0.04312119,170.77,170.75,5.8542]
[1748527491441,0.04312119,170.77,170.74,5.8545]
[1748527491642,0.04312119,170.77,170.73,0.04203215]
[1748527492151,5.89692119,170.77,170.74,5.8545]
[1748527492542,5.89682119,170.77,170.74,5.8546]
[1748527492942,0.04312119,170.77,170.73,0.04203215]
[1748527493144,0.04312119,170.77,170.74,5.8546]
[1748527493646,0.04312119,170.77,170.73,0.04203215]
[1748527494240,0.04312119,170.77,170.74,5.8546]
[1748527495047,5.89682119,170.77,170.74,5.8546]
[1748527495445,0.04312119,170.77,170.75,5.8543]
[1748527495943,0.04312119,170.77,170.73,0.04203215]
[1748527496450,5.89682119,170.77,170.74,5.8545]
[1748527496745,5.89682119,170.77,170.73,0.04203215]
[1748527497044,0.04312119,170.77,170.73,0.04203215]
[1748527497452,0.04312119,170.77,170.73,1.99363215]
[1748527497640,0.04312119,170.77,170.73,3.97743215]
[1748527497844,0.04312119,170.77,170.74,1.9887]
[1748527498244,0.04312119,170.77,170.75,5.8541]
[1748527498743,0.04312119,170.77,170.74,7.8433]
[1748527498944,0.04312119,170.77,170.74,1.9887]
[1748527500248,0.04312119,170.77,170.73,0.04203215]
[1748527500456,0.04312119,170.77,170.63,39.457]
[1748527500645,7.96601279,170.75,170.63,3.917]
[1748527500840,35.54,170.74,170.64,5.8579]
[1748527501146,35.54,170.74,170.63,3.917]
[1748527501354,35.54,170.74,170.67,0.03898029]
[1748527501355,0.03925163,170.7,170.67,0.03898029]
[1748527501547,0.03925163,170.7,170.61,5.8591]
[1748527501548,35.54,170.69,170.58,41.5754]
[1748527501742,43.50601279,170.69,170.58,41.5754]
[1748527502351,35.54,170.69,170.58,41.5754]
[1748527502553,0.03761093,170.65,170.62,0.03832552]
[1748527502949,0.03761093,170.65,170.62,5.89712552]
[1748527503147,0.03761093,170.65,170.62,0.03832552]
[1748527504948,0.03761093,170.65,170.62,5.89692552]
[1748527505750,5.89541093,170.65,170.62,0.03832552]
[1748527506052,0.03761093,170.65,170.62,0.03832552]
[1748527507643,35.36,170.64,170.62,0.03832552]
[1748527507844,35.36,170.64,170.62,5.89692552]
[1748527508052,35.36,170.64,170.62,0.03832552]
[1748527509054,41.2183,170.64,170.62,0.03832552]
[1748527509354,35.36,170.64,170.62,0.03832552]
[1748527510050,5.8584,170.63,170.62,0.03832552]
[1748527510245,35.36,170.64,170.54,37.2807]
[1748527510446,7.96601279,170.63,170.53,2.0523]
[1748527510754,7.96601279,170.63,170.56,5.8608]
[1748527510955,7.96601279,170.63,170.53,2.0523]
[1748527511149,5.8601,170.59,170.55,5.8611]
[1748527511349,5.90379514,170.59,170.55,5.90235409]
[1748527511955,5.8603,170.58,170.55,5.90235409]
[1748527512259,0.04369514,170.59,170.55,0.04125409]
[1748527512552,5.90379514,170.59,170.55,0.04125409]
[1748527512753,35.42369514,170.59,170.55,0.04125409]
[1748527514460,5.8608,170.56,170.55,0.04125409]
[1748527515254,5.8626,170.51,170.5,1.9207]
[1748527515456,5.8626,170.51,170.47,5.8638]
[1748527515757,5.8629,170.5,170.47,5.8638]
[1748527515946,35.38,170.59,170.46,39.2949]
[1748527516152,0.04113093,170.54,170.51,0.03754094]
[1748527516453,5.8622,170.52,170.51,0.03754094]
[1748527519357,0.04113093,170.54,170.51,0.03754094]
[1748527519764,0.04113093,170.54,170.51,5.89984094]
[1748527520159,0.04113093,170.54,170.51,0.03754094]
[1748527520465,15.5997,170.64,170.51,0.03754094]
[1748527520466,35.38,170.62,170.52,2.0475]
[1748527520764,5.8592,170.61,170.57,5.8604]
[1748527521461,5.89616139,170.61,170.57,5.90359804]
[1748527522360,0.03696139,170.61,170.57,0.04319804]
[1748527525670,5.8599,170.59,170.57,0.04319804]
[1748527526269,5.8601,170.58,170.57,0.04319804]
[1748527528366,7.96601279,170.6,170.5,5.8626]
[1748527528670,35.38,170.59,170.5,5.8626]
[1748527528873,5.862,170.53,170.5,5.8626]
[1748527529271,7.96601279,170.57,170.47,35.38]
[1748527529572,5.90550033,170.52,170.48,0.04386876]
[1748527529973,0.04310033,170.52,170.48,0.04386876]
[1748527530176,0.04310033,170.52,170.5,5.8628]
[1748527530875,5.90530033,170.52,170.49,5.8631]
[1748527531073,0.04310033,170.52,170.48,0.04386876]
[1748527531473,5.8632,170.49,170.48,0.04386876]
[1748527532173,5.8631,170.5,170.48,0.04386876]
[1748527532367,0.04310033,170.52,170.48,0.04386876]
[1748527532570,7.96601279,170.51,170.4,506.12]
[1748527533179,5.8632,170.49,170.4,506.12]
[1748527533572,0.04155827,170.46,170.43,0.04222211]
[1748527534072,0.04155827,170.46,170.45,5.8646]
[1748527534677,0.04155827,170.46,170.43,0.04222211]
[1748527535072,0.04155827,170.46,170.45,5.8646]
[1748527535478,0.04155827,170.46,170.43,0.04222211]
[1748527535676,0.04155827,170.46,170.44,5.8646]
[1748527535979,0.04155827,170.46,170.43,0.04222211]
[1748527536279,0.04155827,170.46,170.44,5.8649]
[1748527536972,0.04155827,170.46,170.43,0.04222211]
[1748527537374,0.04155827,170.46,170.45,5.8646]
[1748527537776,0.04155827,170.46,170.44,5.8647]
[1748527537976,0.04155827,170.46,170.43,0.04222211]
[1748527538476,0.04155827,170.46,170.43,5.90732211]
[1748527538679,0.04155827,170.46,170.43,0.04222211]
[1748527539578,5.90585827,170.46,170.43,0.04222211]
[1748527539774,0.04155827,170.46,170.43,0.04222211]
[1748527540880,0.04155827,170.46,170.44,5.8647]
[1748527541680,0.04155827,170.46,170.43,5.90732211]
[1748527542281,0.04155827,170.46,170.43,0.04222211]
[1748527542778,5.8648,170.45,170.43,0.04222211]
[1748527543679,5.8649,170.44,170.43,0.04222211]
[1748527544584,35.24,170.44,170.32,5.56205794]
[1748527544773,7.96601279,170.42,170.35,5.868]
[1748527545384,0.03695105,170.4,170.37,0.04313501]
[1748527545582,35.26,170.39,170.32,5.56205794]
[1748527545779,43.22601279,170.39,170.32,11.43095794]
[1748527545979,5.8676,170.37,170.32,11.43095794]
[1748527546291,43.22601279,170.39,170.32,11.43095794]
[1748527546486,5.91195321,170.37,170.34,0.04033755]
[1748527546987,0.04435321,170.37,170.34,0.04033755]
[1748527547684,0.04435321,170.37,170.36,5.8677]
[1748527547884,0.04435321,170.37,170.34,0.04033755]
[1748527549887,5.8677,170.36,170.34,0.04033755]
[1748527550286,0.04435321,170.37,170.34,0.04033755]
[1748527550989,5.91195321,170.37,170.34,0.04033755]
[1748527551188,0.04435321,170.37,170.34,0.04033755]
[1748527551591,5.8679,170.36,170.34,0.04033755]
[1748527552089,5.91185321,170.37,170.34,0.04033755]
[1748527552692,0.04435321,170.37,170.34,0.04033755]
[1748527553093,0.04435321,170.37,170.34,5.90833755]
[1748527553495,0.04435321,170.37,170.34,0.04033755]
[1748527553796,0.04435321,170.37,170.35,5.8679]
[1748527554087,0.04435321,170.37,170.34,5.90853755]
[1748527554393,0.04435321,170.37,170.34,0.04033755]
[1748527556789,5.8679,170.35,170.34,0.04033755]
[1748527556986,0.04435321,170.37,170.34,0.04033755]
[1748527557787,0.04435321,170.37,170.34,5.90833755]
[1748527558002,0.04435321,170.37,170.34,0.04033755]